[Event "Gibraltar Challengers A 2019"]
[Site "Caleta"]
[Date "2019.01.24"]
[Round "4"]
[White "Villar Reymundo, Juan Antonio"]
[Black "Gonzalez Gonzalez, Alfonso"]
[Result "0-1"]
[ECO "A84"]
[WhiteElo "2237"]
[BlackElo "2160"]
[Annotator "NA"]
[PlyCount "102"]
[EventDate "2019.01.18"]
[EventType "swiss"]
[EventCountry "GGB"]
[SourceTitle "playchess.com"]
[Source "ChessBase"]
[SourceQuality "1"]
[TimeControl "6600+10"]

1. d4 {[%emt 0:03:29]} e6 {[%emt 0:00:00]} 2. Nf3 {[%emt 0:00:07]} b6 {[%emt 0:00:05]} 3. g3 {[%emt 0:00:18]} Bb7 {[%emt 0:00:06]} 4. Bg2 {[%emt 0:00:02]} f5 {[%emt 0:00:07]} 5. O-O {[%emt 0:00:11]} Nf6 {[%emt 0:00:05]} 6. c4 {[%emt 0:00:03] LiveBook: 233 Games} a5 {[%emt 0:00:44]} 7. Nc3 {[%emt 0:00:21]} Bb4 {[%emt 0:00:08]} 8. d5 {[%emt 0:01:45]} Bxc3 {[%emt 0:00:45]} 9. bxc3 {[%emt 0:00:06]} O-O {[%emt 0:03:12]} 10. Ba3 {[%emt 0:05:55]} Re8 {[%emt 0:02:58]} 11. Nd4 {[%emt 0:00:08]} Qc8 {[%emt 0:04:51]} 12. Rb1 {[%emt 0:13:15]} Ne4 {[%emt 0:04:07]} 13. Qc2 {[%emt 0:06:37]} Na6 {[%emt 0:06:00]} 14. f3 {[%emt 0:18:03]} Nec5 {[%emt 0:08:30]} 15. e4 {[%emt 0:00:56]} Qd8 {[%emt 0:06:43]} 16. Rbe1 {[%emt 0:08:44]} g6 {[%emt 0:06:47]} 17. exf5 {[%emt 0:03:13]} gxf5 {[%emt 0:02:40]} (17... exf5 $16 {keeps fighting.} 18. Rxe8+ Qxe8) 18. Bc1 {[%emt 0:13:35]} Qf6 {[%emt 0:00:50]} 19. f4 {[%emt 0:04:57]} Ne4 {[%emt 0:00:32]} 20. dxe6 {[%emt 0:01:18]} dxe6 {[%emt 0:01:35]} 21. Be3 {[%emt 0:04:09]} Rad8 {[%emt 0:10:09]} 22. Rc1 {[%emt 0:05:49]} c5 {[%emt 0:08:37]} 23. Nf3 {[%emt 0:01:24]} Nb8 {[%emt 0:03:34]} 24. g4 {[%emt 0:04:49]} Rd6 {[%emt 0:01:10]} 25. Ne5 {[%emt 0:03:24]} ({Better is} 25. Ng5 $14) 25... Nd7 {[%emt 0:03:17]} 26. g5 {[%emt 0:00:56]} Qg7 {[%emt 0:00:49]} 27. Ng4 {[%emt 0:00:42]} Nf8 {[%emt 0:04:34]} 28. Rfd1 {[%emt 0:07:37]} Red8 {[%emt 0:02:07]} (28... Rxd1+ $17 29. Rxd1 Nxg5 30. Bxb7 Nh3+ 31. Kf1 fxg4) 29. Rxd6 {[%emt 0:00:28]} Rxd6 {[%emt 0:00:23]} 30. Bxe4 {[%emt 0:01:17]} Bxe4 {[%emt 0:00:59]} 31. Nf6+ {[%emt 0:00:01]} Qxf6 {[%emt 0:00:14]} 32. Qxe4 {[%emt 0:00:01]} fxe4 {[%emt 0:10:28]} 33. gxf6 {[%emt 0:00:02]} Kf7 {[%emt 0:00:10]} 34. Kf2 {[%emt 0:00:05]} Kxf6 {[%emt 0:00:07]} 35. Ke2 {[%emt 0:00:44]} Ng6 {[%emt 0:00:17]} 36. Rg1 {[%emt 0:01:00]} Rd3 {[%emt 0:02:16]} 37. Bd2 {[%emt 0:00:01]} Rh3 {[%emt 0:00:34]} 38. Rb1 {[%emt 0:00:01]} Kf5 {[%emt 0:00:54]} 39. Rxb6 {[%emt 0:00:28]} Nxf4+ {[%emt 0:00:07]} 40. Kf1 {[%emt 0:00:20]} Rxh2 {[%emt 0:00:16]} 41. Be3 {[%emt 0:00:01]} Kg4 {[%emt 0:02:10]} 42. Rb8 {[%emt 0:00:26]} Kf3 {[%emt 0:00:19]} 43. Bxc5 {[%emt 0:00:09]} e3 {[%emt 0:00:27]} 44. Kg1 {[%emt 0:00:11]} Rxa2 {[%emt 0:01:18]} 45. Bxe3 {[%emt 0:00:11]} Kxe3 {[%emt 0:00:54]} 46. c5 {[%emt 0:00:00]} Rc2 {[%emt 0:01:44]} 47. Rb3 {[%emt 0:00:01]} Ne2+ {[%emt 0:00:36]} 48. Kh2 {[%emt 0:00:25]} Nxc3+ $19 {[%emt 0:00:21]} (48... Nc1+ $142 49. Kg3 Nxb3 50. Kg4 Nxc5 51. Kg5 Ne4+ 52. Kh6 Rg2 53. Kxh7 Nf6+ 54. Kh6 Ke4 55. c4 Kf5 56. c5 Rg6#) 49. Kg3 {[%emt 0:00:11]} Kd4 {[%emt 0:00:08]} 50. c6 {[%emt 0:00:04]} Nd5 {[%emt 0:00:09]} 51. Ra3 {[%emt 0:00:05]} Rc3+ {[%emt 0:00:13] Ra1 [%emt 00:00:10]} 0-1

[Event "Gibraltar Challengers A 2019"]
[Site "Caleta"]
[Date "2019.01.24"]
[Round "4"]
[White "Longa Yauca, Javier"]
[Black "Crespo, Eugenio"]
[Result "1-0"]
[ECO "D53"]
[WhiteElo "2226"]
[BlackElo "2169"]
[Annotator "NA"]
[PlyCount "59"]
[EventDate "2019.01.18"]
[EventType "swiss"]
[EventCountry "GGB"]
[SourceTitle "playchess.com"]
[Source "ChessBase"]
[SourceQuality "1"]
[TimeControl "6600+10"]

1. d4 {[%emt 0:01:43]} Nf6 {[%emt 0:00:07]} 2. c4 {[%emt 0:00:11]} e6 {[%emt 0:00:06]} 3. Nf3 {[%emt 0:00:17]} d5 {[%emt 0:00:56]} 4. Bg5 {[%emt 0:00:14]} Be7 {[%emt 0:00:30]} 5. e3 {[%emt 0:00:30]} h6 {[%emt 0:00:26]} 6. Bxf6 {[%emt 0:00:20]} Bxf6 {[%emt 0:00:06]} 7. Nc3 {[%emt 0:00:05] LiveBook: 1334 Games} c6 {[%emt 0:02:01]} 8. Qc2 {[%emt 0:00:22]} Nd7 {[%emt 0:03:51] D53: Queen's Gambit Declined: 4 Bg5 Be7: Early deviations} 9. O-O-O {[%emt 0:00:45]} (9. h4 g6 10. O-O-O Bg7 11. e4 dxc4 12. e5 O-O 13. Ne4 c5 14. h5 cxd4 15. hxg6 fxg6 16. Rxd4 {1-0 (32) Salem,A (2638)-Bacrot,E (2725) Riadh 2017}) 9... a5 {[%emt 0:23:18]} 10. Kb1 {[%emt 0:01:15]} Nb6 $146 {[%emt 0:13:52]} ({Predecessor:} 10... Be7 11. g4 a4 12. c5 a3 13. b3 b6 14. cxb6 Qxb6 15. h4 Ba6 16. Bxa6 Rxa6 {½-½ (54) Kichubaev,K (2390)-Akhmadeev,V (2439) Nabereznye Chelny 2006}) 11. Ne5 {[%emt 0:06:14]} dxc4 {[%emt 0:06:15]} (11... O-O $11) 12. Nxc4 {[%emt 0:00:40]} Nxc4 {[%emt 0:04:34]} 13. Bxc4 {[%emt 0:00:07]} b5 {[%emt 0:00:56]} 14. Bd3 {[%emt 0:00:15]} Qb6 {[%emt 0:01:48]} 15. f4 {[%emt 0:01:29]} Be7 {[%emt 0:08:11]} 16. Rc1 {[%emt 0:03:11]} f5 {[%emt 0:06:51]} ({Better is} 16... Ba6 $14) 17. g4 {[%emt 0:00:29]} O-O {[%emt 0:02:13]} 18. Rhg1 {[%emt 0:01:31]} a4 {[%emt 0:23:12]} (18... Qb7 $142 19. Qg2 Bh4 20. gxf5 exf5) 19. gxf5 {[%emt 0:04:11]} exf5 {[%emt 0:00:12]} 20. Rg6 {[%emt 0:03:10]} Rf6 {[%emt 0:05:21]} 21. Rcg1 {[%emt 0:01:59]} Rxg6 {[%emt 0:02:32]} 22. Rxg6 {[%emt 0:00:06]} Qd8 {[%emt 0:01:56]} 23. Bxf5 {[%emt 0:03:04]} c5 {[%emt 0:01:31]} 24. Bxc8 {[%emt 0:00:48]} Rxc8 {[%emt 0:00:18]} 25. Qg2 {[%emt 0:00:30]} Bf8 $2 {[%emt 0:01:43]} (25... Qf8 26. Rxh6 (26. Nxb5 cxd4 27. Nxd4 Bf6 $16) 26... Qf7) 26. d5 {[%emt 0:08:43]} a3 {[%emt 0:00:18]} 27. d6 {[%emt 0:03:02]} axb2 {[%emt 0:00:46]} 28. Rxh6 {[%emt 0:06:16]} Qe8 {[%emt 0:00:01]} 29. Qd5+ {[%emt 0:00:13]} Qf7 {[%emt 0:00:12]} 30. Rh8+ {[%emt 0:00:10]} 1-0

[Event "Gibraltar Challengers A 2019"]
[Site "Caleta"]
[Date "2019.01.24"]
[Round "4"]
[White "Elishev, Ivan"]
[Black "Kandic, Milan"]
[Result "0-1"]
[ECO "C41"]
[WhiteElo "2224"]
[BlackElo "2136"]
[Annotator "NA"]
[PlyCount "64"]
[EventDate "2019.01.18"]
[EventType "swiss"]
[EventCountry "GGB"]
[SourceTitle "playchess.com"]
[Source "ChessBase"]
[SourceQuality "1"]
[TimeControl "6600+10"]

1. d4 {[%emt 0:00:00]} d6 {[%emt 0:00:00]} 2. e4 {[%emt 0:00:00]} Nf6 {[%emt 0:00:00]} 3. Nc3 {[%emt 0:00:03]} e5 {[%emt 0:00:07]} 4. Nf3 {[%emt 0:01:24]} Nbd7 {[%emt 0:00:06]} 5. g4 {[%emt 0:23:18] C41: Philidor Defence} ({White should try} 5. Bc4 $14 Be7 6. O-O) 5... Nxg4 {[%emt 0:00:30]} 6. Rg1 {[%emt 0:00:12]} Ngf6 {[%emt 0:03:59]} 7. Be3 {[%emt 0:00:19] LiveBook: 74 Games} h6 {[%emt 0:02:08]} 8. Bc4 {[%emt 0:01:43]} g5 $146 {[%emt 0:11:38]} ({Predecessor:} 8... c6 $11 9. Bb3 b5 10. a3 Qa5 11. Nd2 {½-½ (11) Moiseenko,A (2663)-Can,E (2557) Gjakova 2016}) 9. Qd2 {[%emt 0:23:08]} (9. dxe5 $16 dxe5 10. Qd3) 9... Nb6 {[%emt 0:06:26]} 10. Bb3 {[%emt 0:00:51]} Bg4 {[%emt 0:12:13]} 11. dxe5 {[%emt 0:01:33]} Bxf3 {[%emt 0:05:19]} 12. exf6 {[%emt 0:00:06]} c6 {[%emt 0:01:23]} 13. Rg3 {[%emt 0:32:31]} g4 {[%emt 0:03:08]} 14. Bxb6 {[%emt 0:01:04]} (14. Rxf3 $11 gxf3 15. O-O-O) 14... Qxb6 {[%emt 0:10:54]} 15. Qf4 {[%emt 0:00:45]} Qc5 {[%emt 0:09:08]} 16. Rxf3 {[%emt 0:12:20]} gxf3 {[%emt 0:01:33]} 17. Qxf3 {[%emt 0:00:26]} Qg5 {[%emt 0:04:53]} 18. Rd1 {[%emt 0:02:57]} h5 {[%emt 0:03:40]} 19. Kf1 {[%emt 0:02:22]} Rg8 {[%emt 0:03:00]} 20. Rd3 {[%emt 0:06:19]} Qg1+ {[%emt 0:04:16]} 21. Ke2 {[%emt 0:00:01]} Qg4 {[%emt 0:00:11]} 22. h3 {[%emt 0:00:38]} Qxf3+ {[%emt 0:00:17]} 23. Rxf3 {[%emt 0:00:01]} Rg5 {[%emt 0:04:07]} 24. Rg3 {[%emt 0:01:36]} Bh6 {[%emt 0:02:16]} 25. h4 {[%emt 0:00:01]} Rxg3 {[%emt 0:01:59]} 26. fxg3 {[%emt 0:00:00]} Kf8 {[%emt 0:00:16]} 27. Kf3 {[%emt 0:00:04]} Bc1 {[%emt 0:01:19]} 28. Nd1 {[%emt 0:00:04]} b5 {[%emt 0:00:34]} 29. g4 {[%emt 0:00:25]} hxg4+ {[%emt 0:00:06]} 30. Kxg4 {[%emt 0:00:00]} Re8 $19 {[%emt 0:00:15]} 31. Kf3 {[%emt 0:00:17]} Re5 {[%emt 0:00:20]} 32. c3 {[%emt 0:00:36]} Rh5 {[%emt 0:00:11]} 0-1

[Event "Gibraltar Challengers A 2019"]
[Site "Caleta"]
[Date "2019.01.24"]
[Round "4"]
[White "Carrascoso Morales, Abel"]
[Black "Janiszewski, Maciej"]
[Result "1/2-1/2"]
[ECO "B01"]
[WhiteElo "2219"]
[BlackElo "2146"]
[Annotator "NA"]
[PlyCount "118"]
[EventDate "2019.01.18"]
[EventType "swiss"]
[EventCountry "GGB"]
[SourceTitle "playchess.com"]
[Source "ChessBase"]
[SourceQuality "1"]
[TimeControl "6600+10"]

1. Nf3 {[%emt 0:01:42]} Nc6 {[%emt 0:02:18]} 2. e4 {[%emt 0:00:11]} d5 {[%emt 0:00:08]} 3. exd5 {[%emt 0:00:09]} Qxd5 {[%emt 0:00:03]} 4. Nc3 {[%emt 0:01:16]} Qh5 {[%emt 0:00:05]} 5. Be2 {[%emt 0:01:29]} Bg4 {[%emt 0:00:09]} 6. d4 {[%emt 0:03:14]} O-O-O {[%emt 0:00:17]} 7. Be3 {[%emt 0:02:39]} Nf6 {[%emt 0:00:38]} 8. h3 {[%emt 0:09:40]} e5 {[%emt 0:00:23]} 9. Rg1 {[%emt 0:03:53]} Nxd4 {[%emt 0:02:08]} 10. Bxd4 {[%emt 0:00:28]} Bxf3 {[%emt 0:06:40]} (10... exd4 $142 11. hxg4 Qa5 12. Nxd4 Bc5) 11. Bxf3 {[%emt 0:00:20]} Qh4 {[%emt 0:02:11]} 12. Bxb7+ $1 {[%emt 0:05:40]} Kxb7 {[%emt 0:02:37]} 13. Qf3+ {[%emt 0:00:05]} c6 {[%emt 0:05:44]} 14. Be3 {[%emt 0:02:56]} Bb4 {[%emt 0:02:40]} 15. g4 {[%emt 0:05:16]} e4 {[%emt 0:04:42]} 16. Qg3 {[%emt 0:05:14]} Qxg3 {[%emt 0:01:15]} 17. Rxg3 {[%emt 0:00:11]} Bxc3+ {[%emt 0:11:53]} 18. bxc3 {[%emt 0:00:03]} Nd5 {[%emt 0:00:13]} 19. Rb1+ {[%emt 0:02:52]} Ka8 {[%emt 0:01:22]} 20. Bd4 {[%emt 0:00:13]} Rhg8 {[%emt 0:03:51]} 21. c4 {[%emt 0:03:16]} Nb4 {[%emt 0:04:20]} 22. Rxb4 {[%emt 0:01:28]} Rxd4 {[%emt 0:00:05]} 23. c3 {[%emt 0:06:18]} Rd7 {[%emt 0:00:11]} 24. Re3 {[%emt 0:00:58]} Re8 {[%emt 0:01:32]} 25. c5 {[%emt 0:04:14]} Rde7 {[%emt 0:00:31]} 26. Kf1 {[%emt 0:08:45]} Re5 {[%emt 0:00:17]} 27. Rc4 {[%emt 0:00:35]} g6 {[%emt 0:01:07]} 28. Kg2 {[%emt 0:00:35]} h5 {[%emt 0:13:03]} 29. gxh5 {[%emt 0:03:51]} g5 {[%emt 0:00:48]} 30. Rg3 {[%emt 0:05:20]} f6 {[%emt 0:06:48]} 31. h6 {[%emt 0:03:44]} Kb7 {[%emt 0:00:31]} (31... Rh8 $11 {keeps the balance.}) 32. h7 {[%emt 0:03:52]} ({White should play} 32. Re3 $16) 32... Rh8 {[%emt 0:04:23]} 33. Rg4 {[%emt 0:01:52]} e3 {[%emt 0:00:12]} 34. fxe3 {[%emt 0:00:19]} Rxe3 {[%emt 0:03:24]} 35. Rb4+ {[%emt 0:02:30]} Kc7 {[%emt 0:02:54]} 36. Ra4 {[%emt 0:00:36]} Kb7 {[%emt 0:06:14]} 37. Rgb4+ {[%emt 0:00:31]} Ka8 {[%emt 0:00:16]} 38. Re4 {[%emt 0:02:20]} Rxe4 {[%emt 0:00:10]} 39. Rxe4 {[%emt 0:00:02]} Rxh7 {[%emt 0:00:05]} 40. Re6 {[%emt 0:00:04]} Rf7 {[%emt 0:00:06]} 41. Rxc6 {[%emt 0:00:12]} Kb7 {[%emt 0:00:02]} 42. Re6 {[%emt 0:01:20]} Rc7 {[%emt 0:02:49]} 43. Rxf6 {[%emt 0:01:07]} Rxc5 {[%emt 0:00:05]} 44. Rf3 {[%emt 0:01:04]} Kb6 {[%emt 0:00:35]} 45. Kf1 {[%emt 0:02:13]} Kb5 {[%emt 0:00:36]} 46. Ke2 {[%emt 0:01:03]} Kc4 {[%emt 0:00:47]} 47. Rg3 {[%emt 0:02:03]} Ra5 {[%emt 0:00:18]} 48. Kd1 {[%emt 0:02:49]} Rxa2 {[%emt 0:00:46]} 49. Rxg5 {[%emt 0:00:11]} a5 {[%emt 0:00:10]} 50. Kc1 $1 {[%emt 0:01:18]} a4 {[%emt 0:02:30]} 51. Kb1 {[%emt 0:01:22]} Rh2 {[%emt 0:00:08]} 52. Ra5 {[%emt 0:01:32]} Kxc3 {[%emt 0:04:08]} 53. Rc5+ {[%emt 0:00:11]} Kb3 {[%emt 0:00:11]} 54. Rc1 {[%emt 0:00:06]} Rxh3 $11 {[%emt 0:00:18]} 55. Rg1 {[%emt 0:00:14]} Rc3 {[%emt 0:00:18]} 56. Rh1 {[%emt 0:00:12]} a3 {[%emt 0:00:07]} 57. Rg1 {[%emt 0:00:03]} a2+ {[%emt 0:00:10]} 58. Ka1 {[%emt 0:00:04]} Ka3 {[%emt 0:00:05]} 59. Rg3 {[%emt 0:00:16]} Rxg3 {[%emt 0:00:06]} 1/2-1/2

[Event "Gibraltar Challengers A 2019"]
[Site "Caleta"]
[Date "2019.01.24"]
[Round "4"]
[White "Pinho, Paulo"]
[Black "Rodriguez Perez, Angel Mariano"]
[Result "1/2-1/2"]
[ECO "E94"]
[WhiteElo "2205"]
[BlackElo "2204"]
[Annotator "NA"]
[PlyCount "44"]
[EventDate "2019.01.18"]
[EventType "swiss"]
[EventCountry "GGB"]
[SourceTitle "playchess.com"]
[Source "ChessBase"]
[SourceQuality "1"]
[TimeControl "6600+10"]

{[%evp 8,44,54,36,32767,32767,32767,32767,32767,31,32767,32767,32767,41,32767,56,32767,50,32767,79,32767,32767,32767,32767,75,32767,120,32767,32767,32767,32767,172,32767,0,32767,160,153,0,62]} 1. d4 {[%emt 0:00:00]} g6 {[%emt 0:00:00]} 2. c4 {[%emt 0:00:06]} Bg7 {[%emt 0:00:00]} 3. e4 {[%emt 0:00:11]} d6 {[%emt 0:00:02]} 4. Nc3 {[%emt 0:00:21]} Nf6 {[%emt 0:00:12]} 5. Be2 {[%emt 0:00:36]} O-O {[%emt 0:00:36]} 6. Nf3 {[%emt 0:00:12]} e5 {[%emt 0:00:10]} 7. O-O {[%emt 0:00:13]} exd4 {[%emt 0:00:04]} 8. Nxd4 {[%emt 0:00:10]} Re8 {[%emt 0:00:06]} 9. f3 {[%emt 0:00:38]} Nc6 {[%emt 0:00:04]} 10. Be3 {[%emt 0:05:30]} Nd7 {[%emt 0:00:20]} 11. Qd2 {[%emt 0:04:32] LiveBook: 7 Games E94: King's Indian: Classical: 6 Be2 e5 7 0-0: Various Black 7th moves} Nf8 {[%emt 0:00:22]} (11... Nde5 12. Rfd1 Nxd4 13. Bxd4 Be6 14. b3 a6 15. Rac1 c5 16. Be3 Nc6 17. Bf1 f5 18. Qxd6 Bd4 {0-1 (18) Popov,V (2528)-Bortnyk,O (2552) Minsk 2015}) 12. Rad1 {[%emt 0:05:25]} Nxd4 {[%emt 0:00:21]} 13. Bxd4 {[%emt 0:00:08]} Bxd4+ {[%emt 0:00:35]} 14. Qxd4 {[%emt 0:00:05]} Ne6 {[%emt 0:00:15]} 15. Qd2 {[%emt 0:00:12]} a5 $146 {[%emt 0:01:16]} ({Predecessor:} 15... Bd7 16. b4 a5 17. a3 axb4 18. axb4 Bc6 {1-0 (32) Lozhnikov,V (2323)-Kuznetsov,E (2172) Tomsk 2013}) 16. f4 {[%emt 0:09:47]} Nc5 {[%emt 0:22:43]} 17. Qd4 {[%emt 0:16:33]} f5 {[%emt 0:04:02]} 18. e5 $2 {[%emt 0:01:08]} Ne6 {[%emt 0:18:37]} 19. Qf2 {[%emt 0:02:01]} Nc5 {[%emt 0:02:28]} 20. Qd4 {[%emt 0:13:16]} (20. exd6 $18 cxd6 21. Bf3) 20... Ne6 {[%emt 0:00:17] [#]} 21. Qe3 $1 {[%emt 0:00:26]} Nc5 {[%emt 0:03:32]} 22. Qd4 {[%emt 0:21:33]} (22. Bf3 $16) 22... Ne6 $14 1/2-1/2

[Event "Gibraltar Challengers A 2019"]
[Site "Caleta"]
[Date "2019.01.24"]
[Round "4"]
[White "Lucas Vega, Ivan"]
[Black "Cao Armillas, Jesus"]
[Result "1-0"]
[ECO "B81"]
[WhiteElo "2203"]
[BlackElo "2048"]
[Annotator "NA"]
[PlyCount "99"]
[EventDate "2019.01.18"]
[EventType "swiss"]
[EventCountry "GGB"]
[SourceTitle "playchess.com"]
[Source "ChessBase"]
[SourceQuality "1"]
[TimeControl "6600+10"]

1. e4 {[%emt 0:00:00]} c5 {[%emt 0:00:00]} 2. Nf3 {[%emt 0:00:06]} d6 {[%emt 0:00:00]} 3. d4 {[%emt 0:00:51]} cxd4 {[%emt 0:00:06]} 4. Nxd4 {[%emt 0:00:03]} Nf6 {[%emt 0:00:06] LiveBook: 97556 Games} 5. Nc3 {[%emt 0:00:15]} a6 {[%emt 0:00:04]} 6. h3 {[%emt 0:00:18]} e6 {[%emt 0:00:09]} 7. g4 {[%emt 0:00:32]} Nc6 {[%emt 0:00:40] B81: Sicilian Scheveningen: Keres Attack} (7... Be7 8. g5 Nfd7 9. Be3 b5 10. a3 Bb7 11. h4 Nc6 12. Rg1 Nc5 13. f3 O-O 14. h5 d5 15. exd5 exd5 16. Nxc6 Bxc6 {1-0 (67) Wang,H (2730)-Yilmaz,M (2636) St Petersburg 2018}) 8. Be3 {[%emt 0:01:23]} Be7 {[%emt 0:00:33]} 9. Qd2 {[%emt 0:04:26]} Qc7 {[%emt 0:03:08]} 10. Bg2 {[%emt 0:15:24]} h6 {[%emt 0:08:13]} 11. f4 {[%emt 0:04:21]} Nxd4 {[%emt 0:05:55]} 12. Bxd4 {[%emt 0:01:10]} e5 {[%emt 0:00:07]} 13. Be3 {[%emt 0:02:58]} Be6 $146 {[%emt 0:00:33]} ({Predecessor:} 13... exf4 14. Bxf4 Be6 15. O-O-O Rd8 16. Nd5 Nxd5 17. exd5 {1-0 (27) Leon Hoyos,M (2542)-Cebalo,M (2500) Nova Gorica 2010}) 14. f5 {[%emt 0:07:35]} Bd7 {[%emt 0:00:36]} 15. O-O-O {[%emt 0:01:08]} Rc8 {[%emt 0:00:36]} 16. g5 {[%emt 0:21:25]} hxg5 {[%emt 0:03:00]} 17. Bxg5 {[%emt 0:00:02]} Bc6 {[%emt 0:06:24]} 18. Kb1 {[%emt 0:08:20]} b5 {[%emt 0:05:47]} 19. Bxf6 {[%emt 0:04:25]} gxf6 {[%emt 0:00:32]} (19... Bxf6 $11 20. Qxd6 Qxd6 21. Rxd6 b4) 20. Qe2 {[%emt 0:02:35]} Bf8 {[%emt 0:07:36]} 21. Bf3 {[%emt 0:07:03]} Bh6 {[%emt 0:04:14]} 22. Nd5 {[%emt 0:02:02]} Bxd5 {[%emt 0:00:36]} 23. Rxd5 {[%emt 0:00:03]} Ke7 {[%emt 0:01:15]} 24. Rhd1 {[%emt 0:00:46]} Bg5 {[%emt 0:02:35]} 25. Bg4 {[%emt 0:09:06]} Qb6 {[%emt 0:02:48]} ({Black should play} 25... Rhd8 $14) 26. a4 {[%emt 0:04:37]} (26. Rxd6 $16 Qxd6 27. Rxd6 Kxd6 28. Qd3+ Kc6 29. a4) 26... Rc5 {[%emt 0:05:58]} 27. a5 {[%emt 0:04:37]} (27. Rxd6 $16 Qxd6 28. Rxd6 Kxd6 29. axb5 axb5 30. Qd3+ Ke7 31. Qa3) 27... Qc7 {[%emt 0:03:58]} (27... Qxa5 $11 {remains equal.} 28. Rxd6 Rhc8) 28. Qd3 {[%emt 0:00:01]} ({White must play} 28. Rxd6 $16 Qxd6 29. Rxd6 Kxd6 30. Bh5) 28... Rxd5 {[%emt 0:00:12]} 29. Qxd5 {[%emt 0:00:03]} Rc8 {[%emt 0:00:43]} 30. c3 {[%emt 0:00:14]} Qc6 {[%emt 0:00:34]} 31. Qd3 {[%emt 0:00:39]} Qc5 {[%emt 0:04:17]} 32. Be2 {[%emt 0:01:12]} Rc6 {[%emt 0:02:46]} 33. Qd5 {[%emt 0:00:13]} Qxd5 {[%emt 0:01:03]} 34. Rxd5 {[%emt 0:00:01]} Kd7 {[%emt 0:01:12]} 35. Kc2 {[%emt 0:01:46]} Rc5 $16 {[%emt 0:02:55]} 36. Rd1 {[%emt 0:00:19]} Rc8 {[%emt 0:02:16]} 37. b4 {[%emt 0:00:35]} Bh4 {[%emt 0:01:06]} 38. Kb3 {[%emt 0:00:14]} Bf2 {[%emt 0:03:26]} 39. c4 {[%emt 0:01:08]} Rh8 {[%emt 0:08:27]} 40. cxb5 {[%emt 0:00:43]} Rxh3+ {[%emt 0:00:07]} 41. Ka4 {[%emt 0:00:50]} axb5+ {[%emt 0:01:25]} 42. Bxb5+ {[%emt 0:00:02]} Kc7 {[%emt 0:01:02]} 43. Rc1+ {[%emt 0:00:16]} Kb8 {[%emt 0:01:01]} 44. Bc4 {[%emt 0:00:57]} Bd4 {[%emt 0:02:19]} 45. Bd5 {[%emt 0:00:33]} Rc3 {[%emt 0:05:51]} 46. Rxc3 {[%emt 0:00:25]} Bxc3 {[%emt 0:00:05]} 47. b5 {[%emt 0:00:06]} Ka7 {[%emt 0:00:32]} 48. b6+ {[%emt 0:00:12]} Ka6 {[%emt 0:00:19]} 49. Bc4+ {[%emt 0:00:03]} Kb7 {[%emt 0:00:08]} 50. Kb5 {[%emt 0:00:05]} 1-0

[Event "Gibraltar Challengers A 2019"]
[Site "Caleta"]
[Date "2019.01.24"]
[Round "4"]
[White "Torres, Federico"]
[Black "Tworzydlo, Piotr"]
[Result "0-1"]
[ECO "A05"]
[WhiteElo "2196"]
[BlackElo "2165"]
[Annotator "NA"]
[PlyCount "77"]
[EventDate "2019.01.18"]
[EventType "swiss"]
[EventCountry "GGB"]
[SourceTitle "playchess.com"]
[Source "ChessBase"]
[SourceQuality "1"]
[TimeControl "6600+10"]

1. c3 {[%emt 0:00:53]} Nf6 {[%emt 0:01:07]} 2. Nf3 {[%emt 0:00:07]} b6 {[%emt 0:01:36]} 3. g3 {[%emt 0:00:15]} Bb7 {[%emt 0:00:05]} 4. Bg2 {[%emt 0:00:04]} e6 {[%emt 0:01:02]} 5. O-O {[%emt 0:00:07]} Be7 {[%emt 0:00:21]} 6. d3 {[%emt 0:00:15]} d5 {[%emt 0:03:17]} 7. Nbd2 {[%emt 0:01:18]} O-O {[%emt 0:03:43] A05: Réti Opening: 1 Nf3 Nf6} 8. e4 {[%emt 1:16:47]} (8. Qc2 Nbd7 9. Re1 c5 10. e4 c4 11. dxc4 dxe4 12. Ng5 e3 13. Rxe3 Bxg2 14. Kxg2 {1-0 (32) Dableo,R (2419)-Garma,C (2327) Bacolod 2017}) 8... dxe4 $146 {[%emt 0:04:31]} ({Predecessor:} 8... c5 9. e5 Nfd7 10. Re1 Nc6 11. Nf1 Qc7 12. Bf4 Rfd8 13. h4 Nf8 14. h5 b5 15. d4 cxd4 16. cxd4 Rdc8 17. Ne3 Qb6 18. Ng4 Nb4 19. Re2 {1-0 (30) Herink,M-Glass,E Marianske Lazne 1959}) 9. Ng5 {[%emt 0:00:19]} Qxd3 {[%emt 0:21:57]} 10. Ndxe4 {[%emt 0:04:06]} Qa6 {[%emt 0:01:35]} 11. Bf4 {[%emt 0:04:23]} Nxe4 {[%emt 0:10:35]} 12. Nxe4 {[%emt 0:00:21]} Bc6 {[%emt 0:04:58]} 13. Bxc7 {[%emt 0:04:39]} Qb7 {[%emt 0:02:10]} 14. Bd6 {[%emt 0:04:09]} Rd8 {[%emt 0:00:49]} 15. Qd4 {[%emt 0:03:17]} Na6 {[%emt 0:12:47]} 16. Qe5 {[%emt 0:01:00]} Bxd6 {[%emt 0:04:27]} 17. Nxd6 {[%emt 0:00:05]} Rxd6 {[%emt 0:00:09]} 18. Qxd6 {[%emt 0:00:07]} Bxg2 {[%emt 0:00:06]} 19. Rfd1 {[%emt 0:00:11]} h6 $19 {[%emt 0:00:35]} 20. Qd7 {[%emt 0:00:06]} Qxd7 {[%emt 0:04:16]} 21. Rxd7 {[%emt 0:00:05]} Bf3 {[%emt 0:00:48]} 22. b4 {[%emt 0:00:14]} Kf8 {[%emt 0:00:32]} 23. Re1 {[%emt 0:01:19]} Bc6 {[%emt 0:01:19]} 24. Rd4 {[%emt 0:02:09]} Rc8 {[%emt 0:01:16]} 25. a3 {[%emt 0:01:40]} Bd5 {[%emt 0:02:02]} 26. Rd3 {[%emt 0:00:04]} Rc4 {[%emt 0:01:02]} 27. a4 {[%emt 0:00:24]} f5 {[%emt 0:01:06]} 28. f4 {[%emt 0:00:47]} Kf7 {[%emt 0:00:58]} 29. h4 {[%emt 0:00:41]} Nc7 {[%emt 0:00:23]} 30. Kf2 {[%emt 0:01:16]} Ne8 {[%emt 0:00:16]} 31. Ke2 {[%emt 0:01:40]} Nd6 {[%emt 0:00:27]} 32. Kd2 {[%emt 0:00:10]} Kf6 {[%emt 0:01:31]} 33. Kc1 {[%emt 0:00:15]} a5 {[%emt 0:00:22]} 34. bxa5 {[%emt 0:00:15]} bxa5 {[%emt 0:00:39]} 35. Kb2 {[%emt 0:00:38]} Rxa4 {[%emt 0:00:13]} 36. Rd4 {[%emt 0:00:35]} Nc4+ {[%emt 0:00:46]} 37. Kb1 {[%emt 0:00:08]} Ra3 {[%emt 0:00:58]} 38. Kc2 {[%emt 0:00:13]} Ra2+ {[%emt 0:00:22]} 39. Kc1 {[%emt 0:00:01] Ke5 [%emt 00:00:16]} 0-1